[Event "Slovakia Open 2022"]
[Site "Bratislava"]
[Date "2022.10.01"]
[Round "4.22"]
[White "Djubek, Boris"]
[Black "Meszaros, Casey Ryan"]
[Result "0-1"]
[ECO "A96"]
[WhiteElo "1995"]
[BlackElo "1925"]
[Annotator "TA"]
[PlyCount "87"]
[EventDate "2022.09.30"]
[EventCountry "SVK"]
[SourceTitle "playchess.com"]
[Source "ChessBase"]
[SourceQuality "1"]
[TimeControl "2700+10"]

{[%evp 16,87,35,8,12,7,19,-18,6,-17,0,0,0,0,-13,-64,0,-21,-20,-21,-25,-25,33,33,42,0,0,0,0,-8,-12,-2,-10,-14,0,-59,-46,-89,-89,-95,-29,-27,-14,-12,-13,-15,-7,-7,-10,-56,21,20,10,21,10,13,58,8,8,0,0,0,0,0,0,0,0,0,432,0,0,0,0,-13]} 1. d4 {[%emt 0:00:08]} f5 {[%emt 0:00:42]} 2. Nf3 {[%emt 0:00:45]} Nf6 {[%emt 0:00:01]} 3. c4 {[%emt 0:00:15]} e6 {[%emt 0:00:07]} 4. Nc3 {[%emt 0:00:12]} Be7 {[%emt 0:00:06]} 5. g3 {[%emt 0:00:09]} O-O {[%emt 0:00:07]} 6. Bg2 {[%emt 0:00:05]} d6 {[%emt 0:00:04]} 7. O-O {[%emt 0:00:26]} Ne4 {[%emt 0:00:20]} 8. Qc2 {[%emt 0:01:16]} Nxc3 {[%emt 0:00:06]} 9. bxc3 {[%emt 0:01:44]} Nc6 {[%emt 0:00:55] A96: Classical Dutch: Fluid Systems: Early deviations.} 10. e4 {[%emt 0:01:25]} e5 {[%emt 0:02:55]} 11. Ba3 {[%emt 0:09:07]} Qe8 {[%emt 0:03:56]} 12. c5 {[%emt 0:03:00] [#]} dxc5 $146 {[%emt 0:07:43]} ({Predecessor:} 12... Kh8 13. Rad1 Qh5 14. cxd6 Bxd6 15. Bc1 fxe4 16. Nxe5 Bxe5 17. dxe5 Bg4 18. Bxe4 Nxe5 {½-½ (27) Wokrina,A-Albrecht,R (2226) Dresden 2005}) 13. Nxe5 {[%emt 0:02:23]} Nxe5 {[%emt 0:01:58]} 14. dxe5 {[%emt 0:00:12]} f4 {[%emt 0:01:03]} 15. Qb3+ {[%emt 0:03:00]} (15. gxf4 $1 $11 Rxf4 16. Bc1) 15... Qf7 {[%emt 0:00:34]} (15... Kh8 $15) 16. Qxf7+ {[%emt 0:01:59]} Rxf7 {[%emt 0:00:35]} 17. gxf4 {[%emt 0:01:41]} Rxf4 {[%emt 0:01:55]} 18. Bc1 {[%emt 0:00:19]} Rf7 {[%emt 0:01:27]} (18... Rh4 $11) 19. f4 $14 {[%emt 0:00:22]} g6 {[%emt 0:00:14] Against f5} 20. f5 {[%emt 0:05:42]} (20. Be3 $14) 20... gxf5 $11 {[%emt 0:02:11]} 21. exf5 {[%emt 0:00:06]} Rxf5 {[%emt 0:00:37]} 22. Rxf5 {[%emt 0:01:06]} Bxf5 {[%emt 0:00:01]} 23. Bxb7 {[%emt 0:02:15]} Rd8 {[%emt 0:00:59]} 24. Bf4 {[%emt 0:02:28]} Rd3 {[%emt 0:01:51]} 25. c4 {[%emt 0:02:43]} (25. Rf1 $11) 25... Be6 $1 $15 {[%emt 0:01:33]} 26. Ba6 {[%emt 0:04:25]} Ra3 {[%emt 0:01:32] Black is more active.} 27. Bb5 {[%emt 0:00:24]} Rc3 {[%emt 0:00:59]} ({Better is} 27... Kg7 $17 28. Rb1 Rxa2) 28. Rc1 $11 {[%emt 0:00:24]} Rxc1+ {[%emt 0:00:38]} 29. Bxc1 {[%emt 0:00:02][%mdl 4096] Endgame KBB-KBB} Kf7 {[%emt 0:00:23]} 30. Kf2 {[%emt 0:00:19]} Kg6 {[%emt 0:00:00]} 31. Kf3 {[%emt 0:00:43]} Kf5 {[%emt 0:00:03]} 32. Bf4 {[%emt 0:00:33]} (32. Bb2 $11 {is more appropriate.}) 32... Bf8 {[%emt 0:00:43]} (32... h5 $15) 33. Ba4 {[%emt 0:00:13][%cal Ra4c2] [#]} Bxc4 {[%emt 0:01:16]} 34. Bc2+ {[%emt 0:00:02]} Ke6 {[%emt 0:00:04]} 35. Bxh7 {[%emt 0:00:07] Hoping for Bg8+.} Bd5+ {[%emt 0:00:10]} 36. Ke3 {[%emt 0:00:29]} ({White should play} 36. Kg4 $14 Ke7 37. Bb1) 36... c6 {[%emt 0:00:13]} 37. Bg8+ {[%emt 0:00:27]} Kd7 {[%emt 0:00:26]} 38. Bxd5 {[%emt 0:00:21]} cxd5 {[%emt 0:00:01] KB-KB} 39. h4 $1 {[%emt 0:00:10][%cal Bh2h4,Bh4h5,Bh5h6,Bh6h7][%mdl 32]} Ke6 {[%emt 0:00:10] Threatens to win with ...Bg7.} 40. h5 {[%emt 0:00:03]} Kf5 {[%emt 0:00:53]} 41. h6 {[%emt 0:00:13]} d4+ $2 {[%emt 0:00:21][%mdl 8192] [#]} (41... Kg6 $11 {and Black has nothing to worry.} 42. e6 Be7) 42. Kf3 $2 {[%emt 0:00:06]} (42. Kd3 $1 $18 Bxh6 43. Bxh6 Kxe5 44. a3) 42... c4 {[%emt 0:01:52]} 43. h7 {[%emt 0:00:07]} Bg7 {[%emt 0:00:01]} 44. Bg3 {[%emt 0:00:34][%mdl 32768] Weighted Error Value: White=0.27 (precise) /Black=0.41. Loss on time!?} 0-1

[Event "Slovakia Open 2022"]
[Site "Bratislava"]
[Date "2022.10.01"]
[Round "4.24"]
[White "Roshka, Yevgeniy"]
[Black "Malaschitz, Teodor"]
[Result "1-0"]
[ECO "D43"]
[WhiteElo "2497"]
[BlackElo "1448"]
[Annotator "TA"]
[PlyCount "75"]
[EventDate "2022.09.30"]
[EventCountry "SVK"]
[SourceTitle "playchess.com"]
[Source "ChessBase"]
[SourceQuality "1"]
[TimeControl "2700+10"]

{[%evp 9,75,7,16,0,25,34,29,33,52,56,96,88,114,108,124,109,148,162,155,156,208,152,164,157,198,158,164,108,206,207,213,223,238,236,247,201,199,195,180,153,194,182,176,164,156,159,195,153,154,145,162,161,161,161,161,161,279,168,940,872,771,737,990,941,1108,979,29986,29987]} 1. d4 {[%emt 0:00:11]} d5 {[%emt 0:00:01]} 2. c4 {[%emt 0:00:03]} c6 {[%emt 0:00:01]} 3. Nf3 {[%emt 0:00:02]} Nf6 {[%emt 0:00:01]} 4. Nc3 {[%emt 0:00:13]} e6 {[%emt 0:00:02]} 5. Qd3 {[%emt 0:00:03]} Nbd7 {[%emt 0:00:45][%cal Bb8d7,Bd7b6,Bb6c8,Bc8e7,Be7g6][%mdl 32]} 6. g3 {[%emt 0:01:05] [#] D43: Semi-Slav: 5 Bg5 h6.} Nb6 $146 {[%emt 0:00:08]} ({Predecessor:} 6... Bd6 7. Bg2 dxc4 8. Qxc4 O-O 9. O-O e5 10. Rd1 Qe7 11. Qb3 Re8 12. Qc2 Nf8 13. Bg5 exd4 14. Nxd4 Be5 15. Ne4 h6 16. Nxf6+ Bxf6 17. Be3 {½-½ (36) Bluebaum,M (2670)-Kollars,D (2598) Magdeburg 2021}) 7. b3 {[%emt 0:00:12]} Bb4 {[%emt 0:00:10]} 8. a3 {[%emt 0:00:18][%cal Ba2a3,Ba3a4,Ba4a5][%mdl 32] White has an edge.} Bxc3+ {[%emt 0:00:23]} 9. Qxc3 {[%emt 0:00:04]} Bd7 {[%emt 0:00:33]} 10. Bg2 {[%emt 0:00:03]} Nc8 {[%emt 0:00:02]} 11. O-O {[%emt 0:00:26]} Ne7 {[%emt 0:00:33]} 12. a4 {[%emt 0:00:21]} Ng6 {[%emt 0:00:50]} 13. Ba3 {[%emt 0:00:07]} Ne7 {[%emt 0:01:05]} 14. Ne5 {[%emt 0:00:24] White is much more active. The black rooks are badly placed.} O-O {[%emt 0:01:14]} (14... a5 $16 15. Rac1 O-O) 15. a5 {[%emt 0:00:26]} Re8 {[%emt 0:00:30]} 16. f3 {[%emt 0:03:06]} Ng6 {[%emt 0:01:30]} 17. Nxg6 {[%emt 0:00:54]} hxg6 {[%emt 0:00:27]} 18. e4 {[%emt 0:00:04]} (18. Bd6 $18) 18... Rc8 {[%emt 0:01:19]} (18... dxe4 $16 19. fxe4 e5) 19. e5 $18 {[%emt 0:00:21]} Nh7 {[%emt 0:00:36]} 20. Bd6 {[%emt 0:00:18]} Ra8 {[%emt 0:00:42]} 21. f4 {[%emt 0:00:13]} b5 {[%emt 0:01:30]} 22. cxb5 {[%emt 0:05:04]} cxb5 {[%emt 0:00:21]} 23. Rfc1 {[%emt 0:00:15]} Rc8 {[%emt 0:00:39]} 24. Qd2 {[%emt 0:00:15]} Rc6 {[%emt 0:00:50]} 25. Rc5 {[%emt 0:01:23]} Rxc5 {[%emt 0:00:33]} 26. Bxc5 {[%emt 0:00:48] This bishop pair is nice.} a6 {[%emt 0:01:11]} 27. Rc1 {[%emt 0:00:03][%cal Ba1c1,Bc1c3,Bc3h3][%mdl 32]} Qa8 {[%emt 0:00:27]} 28. h4 {[%emt 0:00:06]} Rc8 {[%emt 0:00:44]} 29. g4 {[%emt 0:03:19]} Rc6 {[%emt 0:00:13]} 30. Rc3 {[%emt 0:00:16]} Qd8 {[%emt 0:00:33]} 31. Rh3 {[%emt 0:00:04]} Be8 {[%emt 0:00:50]} 32. Bf1 {[%emt 0:00:56]} Bd7 {[%emt 0:00:27]} (32... f5 {is a better defense.} 33. gxf5 exf5) 33. Bd3 {[%emt 0:00:08] [#] Hoping for h5.} Kh8 $2 {[%emt 0:00:19]} (33... f5 34. gxf5 gxf5) 34. h5 {[%emt 0:00:23][%cal Bh4h5,Bh5h6][%mdl 32]} g5 {[%emt 0:00:16]} 35. Bxh7 {[%emt 0:00:08][%cal Of4g5]} Kxh7 {[%emt 0:00:05]} 36. fxg5 {[%emt 0:00:03][%cal Bf4g5,Bg5g6][%mdl 32] Intending g6+! and mate.} Kg8 {[%emt 0:00:55]} 37. g6 {[%emt 0:00:04] [#] h6 would kill now.} Qe8 {[%emt 0:02:18]} 38. h6 {[%emt 0:00:13] Weighted Error Value: White=0.16 (very precise) /Black=0.41} 1-0

[Event "Slovakia Open 2022"]
[Site "Bratislava"]
[Date "2022.10.01"]
[Round "4.25"]
[White "Kucera, Michal"]
[Black "Rehacek, Jan"]
[Result "1-0"]
[ECO "C42"]
[WhiteElo "1927"]
[BlackElo "1342"]
[Annotator "TA"]
[PlyCount "57"]
[EventDate "2022.09.30"]
[EventCountry "SVK"]
[SourceTitle "playchess.com"]
[Source "ChessBase"]
[SourceQuality "1"]
[TimeControl "2700+10"]

{[%evp 11,57,2,18,22,38,23,22,12,58,58,44,52,48,54,49,40,53,44,90,68,131,80,86,78,64,72,298,313,282,248,235,284,220,220,261,293,291,283,610,592,524,287,29990,29991,29998,29993,29993,29994]} 1. e4 {[%emt 0:03:24]} e5 {[%emt 0:00:03]} 2. Nf3 {[%emt 0:00:02]} Nf6 {[%emt 0:00:07]} 3. Nxe5 {[%emt 0:00:04]} d6 {[%emt 0:00:09]} 4. Nf3 {[%emt 0:00:01]} Nxe4 {[%emt 0:00:10]} 5. Nc3 {[%emt 0:00:02]} Nxc3 {[%emt 0:00:18]} 6. dxc3 {[%emt 0:00:02]} Nc6 {[%emt 0:00:13]} 7. Be3 {[%emt 0:00:55] C42: Petroff Defence: 3 Nxe5 and unusual White 3rd moves.} Bg4 {[%emt 0:00:41]} 8. Be2 {[%emt 0:00:05]} Be7 {[%emt 0:00:41]} 9. h3 {[%emt 0:00:53] The position is equal.} Bh5 {[%emt 0:00:34]} (9... Be6 $11) 10. Qd2 {[%emt 0:00:18]} O-O {[%emt 0:00:31]} 11. O-O-O {[%emt 0:00:06] [#]} a5 $146 {[%emt 0:01:58]} ({Predecessor:} 11... Bg6 12. g4 Re8 13. Kb1 Be4 14. Rhg1 Bf6 15. g5 Be5 16. h4 Bg6 17. h5 Be4 {1-0 (65) De Moura,S (2147)-Yoshioka,A (1754) Sao Paulo 2015}) 12. g4 {[%emt 0:02:54]} Bg6 {[%emt 0:00:10]} 13. Rhg1 {[%emt 0:03:44][%cal Oh3h4]} a4 {[%emt 0:02:18]} 14. a3 {[%emt 0:00:05][%cal Oh3h4]} Qd7 {[%emt 0:02:32]} (14... Be4 $14 {should be considered.}) 15. h4 $16 {[%emt 0:00:22]} f6 {[%emt 0:01:07]} (15... Rfe8 $14) 16. g5 {[%emt 0:03:38]} ({White should play} 16. h5 Bf7 17. h6) 16... Bf7 {[%emt 0:01:26]} 17. Rg3 {[%emt 0:04:39][%cal Oh4h5]} Qe6 {[%emt 0:00:31]} 18. c4 $1 {[%emt 0:00:44]} Na5 $2 {[%emt 0:04:46] [#] This costs Black the game.} (18... Bg6 $16) 19. Nd4 $18 {[%emt 0:00:24]} Qd7 {[%emt 0:04:01]} 20. Rdg1 {[%emt 0:05:30]} Nxc4 {[%emt 0:01:21]} 21. Bxc4 {[%emt 0:00:09]} Bxc4 {[%emt 0:00:11] [#]} 22. g6 $1 {[%emt 0:04:23]} hxg6 {[%emt 0:04:09]} 23. Rxg6 {[%emt 0:00:10]} Rf7 {[%emt 0:01:09]} 24. h5 {[%emt 0:01:19] Hoping for h6.} Kh7 {[%emt 0:01:25]} (24... Re8 25. h6 Bf8 26. hxg7 Rxg7) 25. h6 {[%emt 0:00:27]} Bf8 {[%emt 0:01:11]} 26. f3 {[%emt 0:01:11]} ({Not} 26. hxg7 Rxg7 27. Rxg7+ Bxg7 $18) 26... gxh6 {[%emt 0:01:13]} (26... Re8 $18 27. hxg7 Rxg7) 27. Qh2 {[%emt 0:00:12] White mates.} Bg7 {[%emt 0:02:26]} 28. Bxh6 {[%emt 0:01:04]} Kg8 {[%emt 0:00:47]} 29. Bxg7 {[%emt 0:00:37] Weighted Error Value: White=0.25 (precise) /Black=0.65} 1-0

[Event "Slovakia Open 2022"]
[Site "Bratislava"]
[Date "2022.10.01"]
[Round "4.26"]
[White "Shykhnenko, Hryhorii"]
[Black "Durovka, Stefan"]
[Result "1-0"]
[ECO "B00"]
[WhiteElo "1317"]
[BlackElo "1783"]
[Annotator "NA RC COMBH"]
[PlyCount "97"]
[EventDate "2022.09.30"]
[EventCountry "SVK"]
[SourceTitle "playchess.com"]
[Source "ChessBase"]
[SourceQuality "1"]
[TimeControl "2700+10"]

1. e4 {[%emt 0:00:04]} d6 {[%emt 0:07:35]} 2. d4 {[%emt 0:00:02]} Nc6 {[%emt 0:00:20]} 3. Bb5 {[%emt 0:00:07]} Bd7 {[%emt 0:00:10]} 4. Nf3 {[%emt 0:00:14]} a6 {[%emt 0:00:08]} 5. Ba4 {[%emt 0:00:08]} b5 {[%emt 0:00:01]} 6. Bb3 {[%emt 0:00:01]} e6 {[%emt 0:00:04]} 7. Nc3 {[%emt 0:01:02]} Na5 {[%emt 0:00:03]} 8. O-O {[%emt 0:00:11]} h6 {[%emt 0:00:33]} 9. Re1 {[%emt 0:00:13]} Be7 {[%emt 0:00:06]} 10. Bf4 {[%emt 0:00:45]} Nxb3 {[%emt 0:00:08]} 11. axb3 {[%emt 0:00:02]} c6 {[%emt 0:00:31]} 12. Ne2 {[%emt 0:02:17]} Qc7 {[%emt 0:02:02]} 13. c3 {[%emt 0:01:45]} Nf6 {[%emt 0:00:37]} 14. e5 {[%emt 0:01:44]} Nd5 {[%emt 0:00:39]} 15. exd6 {[%emt 0:00:04]} Bxd6 {[%emt 0:00:02]} 16. Bxd6 {[%emt 0:00:02]} Qxd6 {[%emt 0:00:01]} 17. b4 {[%emt 0:00:43]} O-O {[%emt 0:00:56]} 18. Ng3 {[%emt 0:02:48]} Nf6 {[%emt 0:07:11]} 19. Nd2 {[%emt 0:01:30]} Qc7 {[%emt 0:00:34]} 20. Nge4 {[%emt 0:00:39]} Nxe4 {[%emt 0:00:41]} 21. Nxe4 {[%emt 0:00:02]} a5 {[%emt 0:00:22]} 22. bxa5 {[%emt 0:01:16]} Rxa5 {[%emt 0:00:06]} 23. b4 {[%emt 0:00:24]} Raa8 {[%emt 0:00:56]} 24. Qf3 {[%emt 0:02:17]} Rxa1 {[%emt 0:01:58]} 25. Rxa1 {[%emt 0:00:02]} f5 {[%emt 0:00:32]} 26. Nc5 {[%emt 0:00:51]} Bc8 {[%emt 0:03:35]} 27. Qe2 {[%emt 0:04:34]} Re8 {[%emt 0:00:41]} 28. Ra8 {[%emt 0:01:43]} Kh7 {[%emt 0:03:15]} 29. c4 {[%emt 0:01:13]} e5 {[%emt 0:00:18]} 30. cxb5 {[%emt 0:00:43]} cxb5 {[%emt 0:00:13]} 31. f4 {[%emt 0:06:32]} e4 {[%emt 0:00:50]} 32. g3 {[%emt 0:00:04]} Rd8 {[%emt 0:00:19]} 33. Qd2 {[%emt 0:00:43]} Rd6 {[%emt 0:03:48]} 34. Ra5 {[%emt 0:02:39]} Bd7 {[%emt 0:00:55]} 35. Kf2 {[%emt 0:00:26]} Bc6 {[%emt 0:01:12]} 36. Ke3 {[%emt 0:01:00]} Qd8 {[%emt 0:00:25]} 37. Qc3 {[%emt 0:01:12]} Rg6 {[%emt 0:02:10]} 38. Nb3 {[%emt 0:00:55]} Qd5 {[%emt 0:00:33]} 39. Nd2 {[%emt 0:01:15]} h5 {[%emt 0:00:12]} 40. Qc5 {[%emt 0:00:02]} Qd8 {[%emt 0:01:13]} 41. Qxf5 {[%emt 0:00:27]} Kh6 {[%emt 0:01:34]} 42. Nxe4 {[%emt 0:00:49]} Bxe4 {[%emt 0:00:20]} 43. Kxe4 {[%emt 0:00:30]} Qe7+ {[%emt 0:00:16]} 44. Kd3 {[%emt 0:00:56]} Qxb4 {[%emt 0:00:09]} 45. Rxb5 {[%emt 0:00:42]} Qa3+ {[%emt 0:01:04]} 46. Ke4 {[%emt 0:00:48]} Qa8+ {[%emt 0:00:37]} 47. Qd5 {[%emt 0:01:33]} Re6+ {[%emt 0:01:02]} 48. Kf3 {[%emt 0:00:06]} Qa3+ {[%emt 0:00:28]} 49. Kg2 {[%emt 0:00:28]} 1-0

[Event "Slovakia Open 2022"]
[Site "Bratislava"]
[Date "2022.10.01"]
[Round "4.27"]
[White "Melih, Mario"]
[Black "Dolnik, Michal"]
[Result "1-0"]
[ECO "A39"]
[WhiteElo "1633"]
[BlackElo "1485"]
[Annotator "NA RC COMBH"]
[PlyCount "71"]
[EventDate "2022.09.30"]
[EventCountry "SVK"]
[SourceTitle "playchess.com"]
[Source "ChessBase"]
[SourceQuality "1"]
[TimeControl "2700+10"]

1. Nf3 {[%emt 0:00:05]} Nf6 {[%emt 0:00:12]} 2. c4 {[%emt 0:00:02]} c5 {[%emt 0:00:06]} 3. g3 {[%emt 0:00:03]} g6 {[%emt 0:00:11]} 4. Bg2 {[%emt 0:00:04]} Bg7 {[%emt 0:00:03]} 5. Nc3 {[%emt 0:00:03]} Nc6 {[%emt 0:00:10]} 6. O-O {[%emt 0:00:06]} O-O {[%emt 0:00:04]} 7. d4 {[%emt 0:01:22]} cxd4 {[%emt 0:02:08]} 8. Nxd4 {[%emt 0:00:04]} Nxd4 {[%emt 0:00:07]} 9. Qxd4 {[%emt 0:00:02]} d6 {[%emt 0:00:19]} 10. e4 {[%emt 0:00:21]} Be6 {[%emt 0:03:32]} 11. Qd3 {[%emt 0:04:01]} Rc8 {[%emt 0:01:51]} 12. b3 {[%emt 0:01:11]} Nd7 {[%emt 0:00:48]} 13. Bb2 {[%emt 0:00:48]} Nc5 {[%emt 0:00:11]} 14. Qd2 {[%emt 0:02:26]} Qd7 {[%emt 0:04:25]} 15. Rfe1 {[%emt 0:03:29]} Bh3 {[%emt 0:02:06]} 16. Bxh3 {[%emt 0:07:00]} Qxh3 {[%emt 0:00:17]} 17. Nd5 {[%emt 0:00:03]} Rfe8 {[%emt 0:02:22]} 18. Bxg7 {[%emt 0:01:24]} Kxg7 {[%emt 0:00:11]} 19. Qd4+ {[%emt 0:00:02]} Kg8 {[%emt 0:02:30]} 20. b4 {[%emt 0:03:14]} Ne6 {[%emt 0:00:42]} 21. Qxa7 {[%emt 0:00:04]} Ng5 {[%emt 0:00:07]} 22. Qe3 {[%emt 0:00:03]} Qh5 {[%emt 0:00:04]} 23. Rec1 {[%emt 0:02:07]} Qg4 {[%emt 0:01:44]} 24. f4 {[%emt 0:01:27]} Ne6 {[%emt 0:02:30]} 25. Kg2 {[%emt 0:01:22]} Ra8 {[%emt 0:01:18]} 26. a4 {[%emt 0:00:25]} Ra6 {[%emt 0:00:47]} 27. a5 {[%emt 0:00:33]} Rc6 {[%emt 0:01:13]} 28. b5 {[%emt 0:00:36]} Rc5 {[%emt 0:00:24]} 29. a6 {[%emt 0:00:23]} bxa6 {[%emt 0:00:45]} 30. bxa6 {[%emt 0:00:04]} Ra8 {[%emt 0:00:06]} 31. a7 {[%emt 0:00:18]} Kg7 {[%emt 0:00:41]} 32. Nb6 {[%emt 0:00:22]} Re8 {[%emt 0:00:58]} 33. a8=Q {[%emt 0:00:42]} Rxa8 {[%emt 0:00:04]} 34. Rxa8 {[%emt 0:00:04]} Rc6 {[%emt 0:00:11]} 35. Nd5 {[%emt 0:00:13]} Rc5 {[%emt 0:00:08]} 36. Qf3 {[%emt 0:00:12]} 1-0

[Event "Slovakia Open 2022"]
[Site "Bratislava"]
[Date "2022.10.01"]
[Round "4.28"]
[White "Tomcikova, Zuzana"]
[Black "Hlavac, Tomas"]
[Result "1-0"]
[ECO "A05"]
[WhiteElo "1796"]
[BlackElo "1554"]
[Annotator "NA RC COMBH"]
[PlyCount "81"]
[EventDate "2022.09.30"]
[EventCountry "SVK"]
[SourceTitle "playchess.com"]
[Source "ChessBase"]
[SourceQuality "1"]
[TimeControl "2700+10"]

1. Nf3 {[%emt 0:00:07]} Nf6 {[%emt 0:00:03]} 2. g3 {[%emt 0:00:04]} g6 {[%emt 0:00:02]} 3. Bg2 {[%emt 0:00:02]} Bg7 {[%emt 0:00:02]} 4. O-O {[%emt 0:00:04]} d6 {[%emt 0:00:02]} 5. d3 {[%emt 0:00:05]} O-O {[%emt 0:00:04]} 6. e4 {[%emt 0:00:18]} Bg4 {[%emt 0:01:19]} 7. h3 {[%emt 0:00:57]} Bxf3 {[%emt 0:00:49]} 8. Qxf3 {[%emt 0:00:28]} c6 {[%emt 0:01:20]} 9. c3 {[%emt 0:01:30]} Nbd7 {[%emt 0:00:50]} 10. Qe2 {[%emt 0:02:31]} Rc8 {[%emt 0:07:28]} 11. Nd2 {[%emt 0:01:33]} b5 {[%emt 0:01:11]} 12. d4 {[%emt 0:08:25]} Qc7 {[%emt 0:08:52]} 13. Nf3 {[%emt 0:07:32]} e5 {[%emt 0:05:46]} 14. Qc2 {[%emt 0:05:18]} Rfe8 {[%emt 0:01:15]} 15. Bg5 {[%emt 0:02:50]} a5 {[%emt 0:00:47]} 16. Bxf6 {[%emt 0:00:35]} Bxf6 {[%emt 0:01:09]} 17. Rad1 {[%emt 0:02:10]} Rb8 {[%emt 0:02:23]} 18. b3 {[%emt 0:02:15]} Bg7 {[%emt 0:01:08]} 19. Rfe1 {[%emt 0:00:27]} Nf6 {[%emt 0:01:16]} 20. dxe5 {[%emt 0:01:30]} dxe5 {[%emt 0:00:06]} 21. Bf1 {[%emt 0:01:44]} Rbd8 {[%emt 0:00:33]} 22. c4 {[%emt 0:01:38]} b4 {[%emt 0:00:29]} 23. c5 {[%emt 0:01:33]} Qe7 {[%emt 0:01:27]} 24. h4 {[%emt 0:03:06]} Nd7 {[%emt 0:00:23]} 25. Rc1 {[%emt 0:00:38]} Bf8 {[%emt 0:00:18]} 26. Bc4 {[%emt 0:00:20]} h6 {[%emt 0:00:57]} 27. h5 {[%emt 0:01:00]} g5 {[%emt 0:00:37]} 28. Rcd1 {[%emt 0:00:37]} Nxc5 {[%emt 0:00:19]} 29. Kg2 {[%emt 0:00:10]} Bg7 {[%emt 0:01:13]} 30. Rd2 {[%emt 0:00:10]} Rxd2 {[%emt 0:00:29]} 31. Nxd2 {[%emt 0:00:01]} Ne6 {[%emt 0:01:22]} 32. Bxe6 {[%emt 0:00:13]} Qxe6 {[%emt 0:00:08]} 33. Rc1 {[%emt 0:00:05]} Rc8 {[%emt 0:00:11]} 34. Nc4 {[%emt 0:00:02]} a4 {[%emt 0:02:51]} 35. bxa4 {[%emt 0:00:10]} Bf8 {[%emt 0:00:34]} 36. Nb6 {[%emt 0:00:22]} Rb8 {[%emt 0:00:32]} 37. a5 {[%emt 0:00:06]} Be7 {[%emt 0:00:53]} 38. Qxc6 {[%emt 0:00:08]} Qxc6 {[%emt 0:00:20]} 39. Rxc6 {[%emt 0:00:01]} Bd8 {[%emt 0:00:05]} 40. Rxh6 {[%emt 0:00:05]} Kf8 {[%emt 0:00:39]} 41. Nd7+ {[%emt 0:00:02]} 1-0

[Event "Slovakia Open 2022"]
[Site "Bratislava"]
[Date "2022.10.01"]
[Round "4.29"]
[White "Matejka, Simon"]
[Black "Slivka, Vasil"]
[Result "1-0"]
[ECO "C30"]
[WhiteElo "1422"]
[BlackElo "1569"]
[Annotator "NA RC COMBH"]
[PlyCount "71"]
[EventDate "2022.09.30"]
[EventCountry "SVK"]
[SourceTitle "playchess.com"]
[Source "ChessBase"]
[SourceQuality "1"]
[TimeControl "2700+10"]

1. e4 {[%emt 0:00:05]} e5 {[%emt 0:00:02]} 2. Nc3 {[%emt 0:00:08]} Nf6 {[%emt 0:00:03]} 3. f4 {[%emt 0:00:02]} d6 {[%emt 0:00:28]} 4. Nf3 {[%emt 0:00:11]} Nc6 {[%emt 0:00:19]} 5. Bb5 {[%emt 0:00:26]} Bg4 {[%emt 0:00:32]} 6. O-O {[%emt 0:01:11]} a6 {[%emt 0:00:38]} 7. Bxc6+ {[%emt 0:00:25]} bxc6 {[%emt 0:00:02]} 8. h3 {[%emt 0:00:03]} Bxf3 {[%emt 0:00:30]} 9. Qxf3 {[%emt 0:00:10]} Be7 {[%emt 0:00:44]} 10. d3 {[%emt 0:00:39]} O-O {[%emt 0:00:13]} 11. f5 {[%emt 0:00:26]} Kh8 {[%emt 0:00:51]} 12. g4 {[%emt 0:00:28]} Ne8 {[%emt 0:00:43]} 13. Rf2 {[%emt 0:00:53]} g5 {[%emt 0:01:05]} 14. Rg2 {[%emt 0:01:16]} f6 {[%emt 0:00:07]} 15. Ne2 {[%emt 0:00:46]} Rf7 {[%emt 0:00:25]} 16. Ng3 {[%emt 0:00:17]} Ng7 {[%emt 0:00:03]} 17. Be3 {[%emt 0:00:31]} Rb8 {[%emt 0:00:38]} 18. b3 {[%emt 0:00:19]} c5 {[%emt 0:00:13]} 19. Kh2 {[%emt 0:00:41]} c6 {[%emt 0:00:11]} 20. Rag1 {[%emt 0:00:28]} d5 {[%emt 0:00:09]} 21. Nh5 {[%emt 0:01:53]} Nxh5 {[%emt 0:00:18]} 22. gxh5 {[%emt 0:00:04]} h6 {[%emt 0:00:02]} 23. h4 {[%emt 0:01:10]} d4 {[%emt 0:00:44]} 24. Bd2 {[%emt 0:00:16]} Rg7 {[%emt 0:01:00]} 25. Rf2 {[%emt 0:01:25]} Kh7 {[%emt 0:06:25]} 26. Rg3 {[%emt 0:04:56]} Qc7 {[%emt 0:02:12]} 27. hxg5 {[%emt 0:00:45]} fxg5 {[%emt 0:01:33]} 28. f6 {[%emt 0:00:51]} Rf7 {[%emt 0:00:06]} 29. Qf5+ {[%emt 0:00:05]} Kh8 {[%emt 0:00:09]} 30. Qg6 {[%emt 0:00:47]} Bf8 {[%emt 0:00:02]} 31. Rf5 {[%emt 0:03:15]} Rb7 {[%emt 0:06:06]} 32. Bxg5 {[%emt 0:02:15]} hxg5 {[%emt 0:02:36]} 33. Rgxg5 {[%emt 0:00:15]} Bg7 {[%emt 0:00:02]} 34. fxg7+ {[%emt 0:00:47]} Kg8 {[%emt 0:00:23]} 35. h6 {[%emt 0:00:08]} Rxg7 {[%emt 0:01:31]} 36. h7+ {[%emt 0:00:01]} 1-0